[Event "Early-Titled-Tuesday-Blitz-October-24-2023"]
[Site "Chess.com"]
[Date "2023.10.24"]
[Round "7"]
[White "carokannlover213"]
[Black "HeroRubiksCube"]
[Result "1-0"]
[WhiteElo "2746"]
[BlackElo "2552"]
[TimeControl "180+1"]
[EndTime "9:15:56 PDT"]
[Termination "carokannlover213 won by resignation"]

1. Nf3 {[%clk 0:02:59.1]} 1... Nf6 {[%clk 0:02:59.5]} 2. b3 {[%clk 0:02:58.7]}
2... d5 {[%clk 0:02:57.6]} 3. Bb2 {[%clk 0:02:58.9]} 3... c5 {[%clk 0:02:57.6]}
4. e3 {[%clk 0:02:59]} 4... Nc6 {[%clk 0:02:56.7]} 5. Bb5 {[%clk 0:02:58.2]}
5... e6 {[%clk 0:02:53.7]} 6. Ne5 {[%clk 0:02:53.9]} 6... Qb6 {[%clk 0:02:48.3]}
7. Bxc6+ {[%clk 0:02:23.5]} 7... bxc6 {[%clk 0:02:49.2]} 8. d3 {[%clk
0:02:23.3]} 8... Bd6 {[%clk 0:02:47.5]} 9. Nd2 {[%clk 0:02:21.7]} 9... a5 {[%clk
0:02:40.1]} 10. Ng4 {[%clk 0:02:18.4]} 10... Be7 {[%clk 0:02:15.1]} 11. Qf3
{[%clk 0:02:14.5]} 11... Qd8 {[%clk 0:02:05]} 12. e4 {[%clk 0:02:04.6]} 12... h5
{[%clk 0:01:48.4]} 13. Nxf6+ {[%clk 0:01:54.5]} 13... Bxf6 {[%clk 0:01:48.5]}
14. Bxf6 {[%clk 0:01:50.3]} 14... Qxf6 {[%clk 0:01:48.5]} 15. O-O {[%clk
0:01:50.8]} 15... Qxf3 {[%clk 0:01:43.3]} 16. Nxf3 {[%clk 0:01:50.1]} 16... O-O
{[%clk 0:01:43]} 17. Ne5 {[%clk 0:01:49]} 17... Ra6 {[%clk 0:01:35.2]} 18. Rfe1
{[%clk 0:01:41.3]} 18... f6 {[%clk 0:01:35]} 19. Ng6 {[%clk 0:01:39.8]} 19...
Re8 {[%clk 0:01:30.9]} 20. Nf4 {[%clk 0:01:38.4]} 20... h4 {[%clk 0:01:25.7]}
21. exd5 {[%clk 0:01:36.9]} 21... cxd5 {[%clk 0:01:23.7]} 22. Nxd5 {[%clk
0:01:37.1]} 22... Ra7 {[%clk 0:01:12.1]} 23. Nf4 {[%clk 0:01:29.5]} 23... Kf7
{[%clk 0:01:11.4]} 24. Ne2 {[%clk 0:01:26.7]} 24... Bb7 {[%clk 0:01:09.1]} 25.
Nc3 {[%clk 0:01:26.7]} 25... Bc6 {[%clk 0:01:08.2]} 26. Ne4 {[%clk 0:01:25.6]}
26... Bxe4 {[%clk 0:01:02.8]} 27. Rxe4 {[%clk 0:01:26.5]} 27... g5 {[%clk
0:01:03.3]} 28. Rae1 {[%clk 0:01:25.1]} 28... a4 {[%clk 0:01:01.3]} 29. f4
{[%clk 0:01:22.9]} 29... axb3 {[%clk 0:00:52.1]} 30. axb3 {[%clk 0:01:20.6]}
30... Ra2 {[%clk 0:00:45.7]} 31. fxg5 {[%clk 0:01:19.2]} 31... Rxc2 {[%clk
0:00:44.1]} 32. gxf6 {[%clk 0:01:09.8]} 32... Rg8 {[%clk 0:00:42.8]} 33. R1e2
{[%clk 0:01:04.5]} 33... Rxe2 {[%clk 0:00:41.2]} 34. Rxe2 {[%clk 0:01:05.4]}
34... Kxf6 {[%clk 0:00:41.4]} 35. Kf2 {[%clk 0:00:33.8]} 35... Rb8 {[%clk
0:00:39.9]} 36. Rb2 {[%clk 0:00:34.1]} 36... Ke5 {[%clk 0:00:40.1]} 37. Ke3
{[%clk 0:00:18.5]} 37... Rb4 {[%clk 0:00:33]} 38. Rc2 {[%clk 0:00:17.2]} 38...
Kd5 {[%clk 0:00:31]} 39. Rc4 {[%clk 0:00:16.3]} 39... Rxb3 {[%clk 0:00:29.2]}
40. Rxh4 {[%clk 0:00:16.7]} 40... e5 {[%clk 0:00:29]} 41. Rg4 {[%clk 0:00:14.3]}
41... Rb1 {[%clk 0:00:26.1]} 42. h4 {[%clk 0:00:14.6]} 42... Rh1 {[%clk
0:00:26.2]} 43. g3 {[%clk 0:00:13.6]} 43... Re1+ {[%clk 0:00:25.7]} 44. Kd2
{[%clk 0:00:13.7]} 44... Rh1 {[%clk 0:00:24.5]} 45. Rg8 {[%clk 0:00:14.1]} 45...
Rh2+ {[%clk 0:00:17.4]} 46. Ke3 {[%clk 0:00:14.3]} 46... Rh3 {[%clk 0:00:17.5]}
47. Kf3 {[%clk 0:00:11.9]} 47... Rh1 {[%clk 0:00:17.1]} 48. Rd8+ {[%clk
0:00:11.9]} 48... Ke6 {[%clk 0:00:17]} 49. Kg4 {[%clk 0:00:11]} 49... Rc1 {[%clk
0:00:12.6]} 50. Re8+ {[%clk 0:00:09.7]} 50... Kd6 {[%clk 0:00:12.6]} 51. h5
{[%clk 0:00:09.7]} 51... c4 {[%clk 0:00:12.7]} 52. dxc4 {[%clk 0:00:08.9]} 52...
Rxc4+ {[%clk 0:00:13.6]} 53. Kf5 {[%clk 0:00:08.6]} 53... Rc3 {[%clk 0:00:11.7]}
54. g4 {[%clk 0:00:08.5]} 54... Rf3+ {[%clk 0:00:11.6]} 55. Kg6 {[%clk
0:00:09.1]} 55... Kd5 {[%clk 0:00:10.2]} 56. g5 {[%clk 0:00:09.4]} 56... e4
{[%clk 0:00:10.6]} 57. h6 {[%clk 0:00:10.1]} 57... e3 {[%clk 0:00:10.1]} 58. h7
{[%clk 0:00:10.3]} 58... Rh3 {[%clk 0:00:10.8]} 59. h8=Q {[%clk 0:00:10.5]}
59... Rxh8 {[%clk 0:00:11.2]} 60. Rxh8 {[%clk 0:00:11.4]} 1-0

[Event "Early-Titled-Tuesday-Blitz-October-24-2023"]
[Site "Chess.com"]
[Date "2023.10.24"]
[Round "7"]
[White "attack2mateU"]
[Black "Khromkin"]
[Result "0-1"]
[WhiteElo "2698"]
[BlackElo "2513"]
[TimeControl "180+1"]
[EndTime "9:15:56 PDT"]
[Termination "Khromkin won on time"]

1. e4 {[%clk 0:03:00.9]} 1... c5 {[%clk 0:02:59.3]} 2. Nf3 {[%clk 0:03:00.5]}
2... Nc6 {[%clk 0:02:59.8]} 3. Bb5 {[%clk 0:03:00.1]} 3... g6 {[%clk 0:02:59.2]}
4. O-O {[%clk 0:03:00.2]} 4... Bg7 {[%clk 0:02:59.4]} 5. Re1 {[%clk 0:03:00.9]}
5... Nf6 {[%clk 0:02:58.9]} 6. c3 {[%clk 0:03:00.9]} 6... O-O {[%clk 0:02:58.7]}
7. d4 {[%clk 0:03:00.9]} 7... d5 {[%clk 0:02:59.1]} 8. e5 {[%clk 0:03:00.8]}
8... Ne4 {[%clk 0:02:59.6]} 9. Bxc6 {[%clk 0:03:01.3]} 9... bxc6 {[%clk
0:02:59.1]} 10. Be3 {[%clk 0:03:02]} 10... cxd4 {[%clk 0:02:42.7]} 11. cxd4
{[%clk 0:03:02.9]} 11... Qb6 {[%clk 0:02:28.1]} 12. Qc1 {[%clk 0:03:02.1]} 12...
a5 {[%clk 0:02:23.7]} 13. Nc3 {[%clk 0:02:59.7]} 13... a4 {[%clk 0:02:24]} 14.
Nxe4 {[%clk 0:02:55.1]} 14... dxe4 {[%clk 0:02:24.2]} 15. Nd2 {[%clk 0:02:53.8]}
15... Rb8 {[%clk 0:02:16]} 16. Nxe4 {[%clk 0:02:17.3]} 16... Qxb2 {[%clk
0:02:13.7]} 17. Qxb2 {[%clk 0:02:08]} 17... Rxb2 {[%clk 0:02:13.2]} 18. Nc5
{[%clk 0:02:08.7]} 18... a3 {[%clk 0:02:08.5]} 19. Bc1 {[%clk 0:02:05.5]} 19...
Rb4 {[%clk 0:02:05.1]} 20. Nb3 {[%clk 0:02:01]} 20... Ra4 {[%clk 0:01:51.8]} 21.
Nc5 {[%clk 0:01:40.2]} 21... Rxd4 {[%clk 0:01:49.3]} 22. Bxa3 {[%clk 0:01:39.8]}
22... Bf5 {[%clk 0:01:39.7]} 23. Nb3 {[%clk 0:01:30.8]} 23... Rd5 {[%clk
0:01:37.2]} 24. Bxe7 {[%clk 0:01:30.6]} 24... Re8 {[%clk 0:01:27.3]} 25. Bf6
{[%clk 0:01:25.3]} 25... Bh6 {[%clk 0:01:14.8]} 26. a4 {[%clk 0:01:15.7]} 26...
Rb8 {[%clk 0:01:11.7]} 27. Nc1 {[%clk 0:01:00.2]} 27... Bd2 {[%clk 0:01:08.4]}
28. Rf1 {[%clk 0:00:56.5]} 28... Bc3 {[%clk 0:01:02.7]} 29. Ra3 {[%clk
0:00:56.3]} 29... Bb2 {[%clk 0:00:46.4]} 30. Rb3 {[%clk 0:00:49.2]} 30... Rxb3
{[%clk 0:00:39.3]} 31. Nxb3 {[%clk 0:00:50.1]} 31... Bc2 {[%clk 0:00:28.2]} 32.
Nc1 {[%clk 0:00:20.6]} 32... Bxa4 {[%clk 0:00:26.1]} 33. Na2 {[%clk 0:00:13.2]}
33... Bxe5 {[%clk 0:00:23.5]} 34. Bxe5 {[%clk 0:00:12.9]} 34... Rxe5 {[%clk
0:00:23.6]} 35. Nc3 {[%clk 0:00:13.6]} 35... Bb3 {[%clk 0:00:20.6]} 36. f3
{[%clk 0:00:11.4]} 36... Rc5 {[%clk 0:00:17.5]} 37. Rc1 {[%clk 0:00:10.4]} 37...
Kg7 {[%clk 0:00:14.3]} 38. Kf2 {[%clk 0:00:11]} 38... Bd5 {[%clk 0:00:13.5]} 39.
Ke3 {[%clk 0:00:11.1]} 39... Rc4 {[%clk 0:00:12.5]} 40. Kd3 {[%clk 0:00:10.7]}
40... Rb4 {[%clk 0:00:12.4]} 41. Rc2 {[%clk 0:00:08.3]} 41... Rb8 {[%clk
0:00:11.4]} 42. Kd4 {[%clk 0:00:07.3]} 42... Rd8 {[%clk 0:00:11.8]} 43. Kc5
{[%clk 0:00:07.4]} 43... Re8 {[%clk 0:00:12]} 44. Re2 {[%clk 0:00:07.2]} 44...
Rxe2 {[%clk 0:00:11.3]} 45. Nxe2 {[%clk 0:00:08.1]} 45... Kf6 {[%clk 0:00:11.2]}
46. Nd4 {[%clk 0:00:06.7]} 46... Ke5 {[%clk 0:00:10.5]} 47. Nxc6+ {[%clk
0:00:07.3]} 47... Bxc6 {[%clk 0:00:10.1]} 48. Kxc6 {[%clk 0:00:08.2]} 48... Kf4
{[%clk 0:00:09.4]} 49. Kd6 {[%clk 0:00:08.3]} 49... Ke3 {[%clk 0:00:09.8]} 50.
Ke5 {[%clk 0:00:08.1]} 50... Kf2 {[%clk 0:00:10]} 51. Kf6 {[%clk 0:00:02.4]}
51... Kxg2 {[%clk 0:00:10]} 52. Kxf7 {[%clk 0:00:02.8]} 52... Kxf3 {[%clk
0:00:08.6]} 53. Kg7 {[%clk 0:00:03.3]} 53... h5 {[%clk 0:00:06.1]} 54. Kxg6
{[%clk 0:00:03.5]} 54... h4 {[%clk 0:00:06.7]} 0-1

[Event "Early-Titled-Tuesday-Blitz-October-24-2023"]
[Site "Chess.com"]
[Date "2023.10.24"]
[Round "7"]
[White "MarijaKuznecova"]
[Black "gpsji27"]
[Result "0-1"]
[WhiteElo "2385"]
[BlackElo "2293"]
[TimeControl "180+1"]
[EndTime "9:15:57 PDT"]
[Termination "gpsji27 won on time"]

1. e4 {[%clk 0:03:00.9]} 1... e5 {[%clk 0:02:58.5]} 2. Nf3 {[%clk 0:03:00.5]}
2... Nc6 {[%clk 0:02:57]} 3. d4 {[%clk 0:03:00.6]} 3... exd4 {[%clk 0:02:55.8]}
4. Nxd4 {[%clk 0:03:01.5]} 4... Bc5 {[%clk 0:02:54.3]} 5. Nb3 {[%clk 0:03:00.9]}
5... Bb6 {[%clk 0:02:53.6]} 6. Nc3 {[%clk 0:03:01.4]} 6... Nf6 {[%clk
0:02:53.2]} 7. Qe2 {[%clk 0:03:01.8]} 7... d6 {[%clk 0:02:52.6]} 8. Be3 {[%clk
0:03:01.4]} 8... O-O {[%clk 0:02:52.9]} 9. O-O-O {[%clk 0:03:01]} 9... Be6
{[%clk 0:02:52.5]} 10. f3 {[%clk 0:03:00.2]} 10... Ne5 {[%clk 0:02:52.3]} 11. g4
{[%clk 0:02:46.4]} 11... Bc4 {[%clk 0:02:51.2]} 12. Qf2 {[%clk 0:02:32.1]} 12...
Nexg4 {[%clk 0:02:48.9]} 13. fxg4 {[%clk 0:02:32.8]} 13... Nxg4 {[%clk
0:02:48.8]} 14. Qg3 {[%clk 0:02:31.9]} 14... Bxe3+ {[%clk 0:02:45.9]} 15. Kb1
{[%clk 0:02:31.3]} 15... Bxf1 {[%clk 0:02:44.5]} 16. Rhxf1 {[%clk 0:02:25.6]}
16... Qg5 {[%clk 0:02:23.4]} 17. Rd5 {[%clk 0:02:03.2]} 17... Ne5 {[%clk
0:02:17.1]} 18. Qh3 {[%clk 0:01:55.2]} 18... Bb6 {[%clk 0:01:58]} 19. Ne2 {[%clk
0:01:47]} 19... Qe3 {[%clk 0:01:48]} 20. Qg2 {[%clk 0:01:41.7]} 20... g6 {[%clk
0:01:39.6]} 21. Rdd1 {[%clk 0:01:33.1]} 21... Rae8 {[%clk 0:01:35]} 22. Rde1
{[%clk 0:01:32.2]} 22... Qh6 {[%clk 0:01:22.6]} 23. Nf4 {[%clk 0:01:28.6]} 23...
Nc4 {[%clk 0:01:18]} 24. Nd5 {[%clk 0:01:24.8]} 24... Kh8 {[%clk 0:01:03.4]} 25.
Rf3 {[%clk 0:01:05]} 25... Qg7 {[%clk 0:01:01.6]} 26. c3 {[%clk 0:00:55.6]}
26... f5 {[%clk 0:00:57.7]} 27. Qf1 {[%clk 0:00:48.8]} 27... fxe4 {[%clk
0:00:52.1]} 28. Rxf8+ {[%clk 0:00:47.7]} 28... Rxf8 {[%clk 0:00:52.6]} 29. Qxc4
{[%clk 0:00:47.2]} 29... Qe5 {[%clk 0:00:45.9]} 30. Qxe4 {[%clk 0:00:42.7]}
30... Qxh2 {[%clk 0:00:44.5]} 31. Rh1 {[%clk 0:00:34]} 31... Qg3 {[%clk
0:00:36]} 32. a4 {[%clk 0:00:24.3]} 32... Qf3 {[%clk 0:00:20.6]} 33. Qxf3 {[%clk
0:00:19.8]} 33... Rxf3 {[%clk 0:00:21.5]} 34. a5 {[%clk 0:00:19.2]} 34... Bc5
{[%clk 0:00:20.3]} 35. Nxc7 {[%clk 0:00:17.6]} 35... Kg7 {[%clk 0:00:20]} 36.
Nb5 {[%clk 0:00:16.6]} 36... a6 {[%clk 0:00:19.8]} 37. N5d4 {[%clk 0:00:16.5]}
37... Bxd4 {[%clk 0:00:18.2]} 38. Nxd4 {[%clk 0:00:17.4]} 38... Rd3 {[%clk
0:00:18.4]} 39. Kc2 {[%clk 0:00:16.5]} 39... Rg3 {[%clk 0:00:18.7]} 40. Re1
{[%clk 0:00:16.3]} 40... h5 {[%clk 0:00:19]} 41. Ne2 {[%clk 0:00:09.8]} 41...
Rg2 {[%clk 0:00:18.9]} 42. Kd3 {[%clk 0:00:09.6]} 42... h4 {[%clk 0:00:19.4]}
43. Nf4 {[%clk 0:00:09.6]} 43... Rg3+ {[%clk 0:00:19.6]} 44. Re3 {[%clk
0:00:09.2]} 44... Rxe3+ {[%clk 0:00:11.6]} 45. Kxe3 {[%clk 0:00:10.1]} 45... Kf6
{[%clk 0:00:12.3]} 46. Kf3 {[%clk 0:00:08.3]} 46... Kf5 {[%clk 0:00:12.1]} 47.
Ne2 {[%clk 0:00:05.2]} 47... g5 {[%clk 0:00:12.6]} 48. Nd4+ {[%clk 0:00:05.2]}
48... Ke5 {[%clk 0:00:13]} 49. Kg4 {[%clk 0:00:05.4]} 49... Kd5 {[%clk
0:00:13.6]} 50. Kxg5 {[%clk 0:00:05.4]} 50... h3 {[%clk 0:00:14.2]} 51. Nf3
{[%clk 0:00:05.7]} 51... Kc4 {[%clk 0:00:15.1]} 52. Kg4 {[%clk 0:00:04.1]} 52...
Kb3 {[%clk 0:00:15.5]} 53. Kxh3 {[%clk 0:00:04.5]} 53... Kxb2 {[%clk 0:00:16.2]}
54. c4 {[%clk 0:00:05]} 54... Kc3 {[%clk 0:00:16.7]} 55. Nd4 {[%clk 0:00:02]}
55... Kxd4 {[%clk 0:00:16.9]} 0-1

[Event "Early-Titled-Tuesday-Blitz-October-24-2023"]
[Site "Chess.com"]
[Date "2023.10.24"]
[Round "7"]
[White "Russian_berezka"]
[Black "venturov"]
[Result "1/2-1/2"]
[WhiteElo "2676"]
[BlackElo "2491"]
[TimeControl "180+1"]
[EndTime "9:15:58 PDT"]
[Termination "Game drawn by repetition"]

1. d4 {[%clk 0:03:00.9]} 1... Nf6 {[%clk 0:03:00]} 2. c4 {[%clk 0:03:00.6]} 2...
e6 {[%clk 0:02:59.9]} 3. Nc3 {[%clk 0:03:00.6]} 3... Bb4 {[%clk 0:03:00]} 4. e3
{[%clk 0:03:01.2]} 4... O-O {[%clk 0:02:59]} 5. Bd2 {[%clk 0:03:01.6]} 5... c5
{[%clk 0:02:57.8]} 6. a3 {[%clk 0:03:00.7]} 6... Bxc3 {[%clk 0:02:57.2]} 7. Bxc3
{[%clk 0:03:01.6]} 7... Ne4 {[%clk 0:02:57.2]} 8. Ne2 {[%clk 0:03:01.5]} 8...
Nxc3 {[%clk 0:02:57.2]} 9. Nxc3 {[%clk 0:03:01.4]} 9... cxd4 {[%clk 0:02:57.2]}
10. Qxd4 {[%clk 0:02:44.5]} 10... b6 {[%clk 0:02:44.1]} 11. Be2 {[%clk
0:02:17.3]} 11... Bb7 {[%clk 0:02:41.7]} 12. O-O {[%clk 0:02:15.9]} 12... Nc6
{[%clk 0:02:38.6]} 13. Qd6 {[%clk 0:02:06.6]} 13... Qg5 {[%clk 0:02:34.5]} 14.
Bf3 {[%clk 0:01:49]} 14... Rad8 {[%clk 0:02:29.4]} 15. b4 {[%clk 0:01:43.8]}
15... f5 {[%clk 0:02:25]} 16. Rac1 {[%clk 0:01:38.3]} 16... Qf6 {[%clk
0:02:08.2]} 17. Rfd1 {[%clk 0:01:35.5]} 17... g5 {[%clk 0:01:51]} 18. Qc7 {[%clk
0:01:22.4]} 18... Ba8 {[%clk 0:01:18.6]} 19. Nb5 {[%clk 0:01:20.6]} 19... g4
{[%clk 0:01:14.2]} 20. Be2 {[%clk 0:01:20.7]} 20... Ne5 {[%clk 0:00:54.1]} 21.
Nxa7 {[%clk 0:01:12.6]} 21... Qg7 {[%clk 0:00:51.6]} 22. Kh1 {[%clk 0:01:00.7]}
22... Be4 {[%clk 0:00:47.2]} 23. Nb5 {[%clk 0:00:53.7]} 23... Ng6 {[%clk
0:00:45.4]} 24. Qxb6 {[%clk 0:00:48]} 24... Nh4 {[%clk 0:00:43.1]} 25. Bf1
{[%clk 0:00:43.3]} 25... Qh6 {[%clk 0:00:39.9]} 26. Qd6 {[%clk 0:00:39.9]} 26...
Ng6 {[%clk 0:00:24.6]} 27. Qg3 {[%clk 0:00:37.9]} 27... Qg5 {[%clk 0:00:23]} 28.
f3 {[%clk 0:00:35.4]} 28... Bb7 {[%clk 0:00:20]} 29. f4 {[%clk 0:00:34.6]} 29...
Qf6 {[%clk 0:00:20.5]} 30. Nd6 {[%clk 0:00:34.7]} 30... Ba8 {[%clk 0:00:19]} 31.
c5 {[%clk 0:00:27.5]} 31... h5 {[%clk 0:00:19.1]} 32. b5 {[%clk 0:00:23.3]}
32... h4 {[%clk 0:00:19.2]} 33. Qf2 {[%clk 0:00:23.1]} 33... h3 {[%clk
0:00:19.4]} 34. c6 {[%clk 0:00:21.5]} 34... dxc6 {[%clk 0:00:19.6]} 35. bxc6
{[%clk 0:00:21.2]} 35... e5 {[%clk 0:00:17.1]} 36. c7 {[%clk 0:00:18.8]} 36...
Rxd6 {[%clk 0:00:11.6]} 37. Rxd6 {[%clk 0:00:19.7]} 37... Qxd6 {[%clk
0:00:11.9]} 38. c8=Q {[%clk 0:00:20.4]} 38... hxg2+ {[%clk 0:00:09.6]} 39. Bxg2
{[%clk 0:00:19.1]} 39... Bxg2+ {[%clk 0:00:09.5]} 40. Qxg2 {[%clk 0:00:18.8]}
40... Rxc8 {[%clk 0:00:09.9]} 41. Rxc8+ {[%clk 0:00:19.3]} 41... Kh7 {[%clk
0:00:10.1]} 42. Qb7+ {[%clk 0:00:08.4]} 42... Kh6 {[%clk 0:00:10]} 43. Rc1
{[%clk 0:00:05.2]} 43... exf4 {[%clk 0:00:09.6]} 44. exf4 {[%clk 0:00:05.7]}
44... Qxf4 {[%clk 0:00:09]} 45. Rg1 {[%clk 0:00:04.4]} 45... Qe3 {[%clk
0:00:07.9]} 46. Qg2 {[%clk 0:00:04.2]} 46... Nf4 {[%clk 0:00:08]} 47. Qc2 {[%clk
0:00:02.1]} 47... Qf3+ {[%clk 0:00:08.1]} 48. Rg2 {[%clk 0:00:02.6]} 48... Qf1+
{[%clk 0:00:07.8]} 49. Rg1 {[%clk 0:00:03]} 49... Qf3+ {[%clk 0:00:08.1]} 50.
Rg2 {[%clk 0:00:03.8]} 50... Qxa3 {[%clk 0:00:08.5]} 51. Qxf5 {[%clk 0:00:03]}
51... Nxg2 {[%clk 0:00:04.4]} 52. Qf6+ {[%clk 0:00:03.1]} 52... Kh5 {[%clk
0:00:04.3]} 53. Qf5+ {[%clk 0:00:02.9]} 53... Kh6 {[%clk 0:00:04.3]} 54. Qf6+
{[%clk 0:00:02.7]} 54... Kh5 {[%clk 0:00:04.9]} 55. Qf5+ {[%clk 0:00:03]} 55...
Kh6 {[%clk 0:00:02.2]} 1/2-1/2

[Event "Early-Titled-Tuesday-Blitz-October-24-2023"]
[Site "Chess.com"]
[Date "2023.10.24"]
[Round "7"]
[White "Andrei_Skvortsov"]
[Black "zajka-molotok"]
[Result "1-0"]
[WhiteElo "2664"]
[BlackElo "2553"]
[TimeControl "180+1"]
[EndTime "9:15:59 PDT"]
[Termination "Andrei_Skvortsov won by resignation"]

1. e4 {[%clk 0:03:00.9]} 1... c5 {[%clk 0:02:58.6]} 2. d4 {[%clk 0:02:59.2]}
2... cxd4 {[%clk 0:02:58.1]} 3. Qxd4 {[%clk 0:03:00.1]} 3... Nc6 {[%clk
0:02:57.1]} 4. Qd3 {[%clk 0:03:00.5]} 4... Nf6 {[%clk 0:02:48.4]} 5. Nc3 {[%clk
0:03:00.4]} 5... g6 {[%clk 0:02:40.4]} 6. Nf3 {[%clk 0:03:00.3]} 6... d6 {[%clk
0:02:39.3]} 7. Be2 {[%clk 0:03:00.6]} 7... Bg7 {[%clk 0:02:38.8]} 8. O-O {[%clk
0:03:01.2]} 8... O-O {[%clk 0:02:37.3]} 9. Nd5 {[%clk 0:02:59.9]} 9... Bg4
{[%clk 0:02:31.5]} 10. c3 {[%clk 0:02:59.2]} 10... Bxf3 {[%clk 0:02:26.9]} 11.
Qxf3 {[%clk 0:02:58.1]} 11... Rb8 {[%clk 0:02:15.1]} 12. Bg5 {[%clk 0:02:56.8]}
12... Ne5 {[%clk 0:02:10.1]} 13. Qe3 {[%clk 0:02:55.3]} 13... Nxd5 {[%clk
0:01:56.1]} 14. exd5 {[%clk 0:02:55]} 14... Re8 {[%clk 0:01:54.8]} 15. Qxa7
{[%clk 0:02:52]} 15... b5 {[%clk 0:01:50.5]} 16. Qe3 {[%clk 0:02:46.5]} 16...
Nc4 {[%clk 0:01:49.2]} 17. Qc1 {[%clk 0:02:40.4]} 17... Qc7 {[%clk 0:01:45]} 18.
Rd1 {[%clk 0:02:38.9]} 18... Rec8 {[%clk 0:01:26.1]} 19. Bxc4 {[%clk 0:02:32.7]}
19... bxc4 {[%clk 0:01:21.4]} 20. a4 {[%clk 0:02:26.6]} 20... Qb7 {[%clk
0:01:18.5]} 21. Rd2 {[%clk 0:02:26.7]} 21... h6 {[%clk 0:01:09.8]} 22. Be3
{[%clk 0:02:26.8]} 22... Rc7 {[%clk 0:01:03.3]} 23. h4 {[%clk 0:02:23.1]} 23...
Ra8 {[%clk 0:01:00.9]} 24. Qd1 {[%clk 0:02:19.4]} 24... Ra5 {[%clk 0:00:57]} 25.
g3 {[%clk 0:02:16.2]} 25... Qa6 {[%clk 0:00:55]} 26. Re2 {[%clk 0:02:12]} 26...
Rb7 {[%clk 0:00:52.5]} 27. Bf4 {[%clk 0:02:11.2]} 27... Rc5 {[%clk 0:00:48.2]}
28. Qd2 {[%clk 0:02:07.1]} 28... h5 {[%clk 0:00:45.8]} 29. Rae1 {[%clk
0:02:05.4]} 29... Bf8 {[%clk 0:00:44.5]} 30. Bh6 {[%clk 0:02:04.1]} 30... Bxh6
{[%clk 0:00:33.9]} 31. Qxh6 {[%clk 0:02:05]} 31... Qa7 {[%clk 0:00:32.8]} 32.
Qg5 {[%clk 0:02:02.4]} 32... Rcc7 {[%clk 0:00:24.7]} 33. Kg2 {[%clk 0:01:35.3]}
33... Qxa4 {[%clk 0:00:13.7]} 34. Rxe7 {[%clk 0:01:33.2]} 34... Rxe7 {[%clk
0:00:14.6]} 35. Rxe7 {[%clk 0:01:32.8]} 35... Rxe7 {[%clk 0:00:15.2]} 36. Qxe7
{[%clk 0:01:33.3]} 36... Qa6 {[%clk 0:00:14.3]} 37. Qe8+ {[%clk 0:01:31.2]}
37... Kg7 {[%clk 0:00:13.9]} 38. Qe4 {[%clk 0:01:31.8]} 38... Qb5 {[%clk
0:00:13.4]} 39. Qd4+ {[%clk 0:01:31.5]} 39... Kg8 {[%clk 0:00:13.2]} 40. Kf3
{[%clk 0:01:31.7]} 40... Qxb2 {[%clk 0:00:12.7]} 41. Qxc4 {[%clk 0:01:31.4]}
41... Qd2 {[%clk 0:00:11.5]} 42. Kg2 {[%clk 0:01:29.3]} 42... Qd1 {[%clk
0:00:11.2]} 43. Qe4 {[%clk 0:01:28.6]} 43... Qd2 {[%clk 0:00:10.6]} 44. c4
{[%clk 0:01:28.8]} 44... Qc1 {[%clk 0:00:09.7]} 45. Qf4 {[%clk 0:01:23.2]} 45...
Qa3 {[%clk 0:00:04.9]} 46. Qe3 {[%clk 0:01:19.4]} 46... Qb4 {[%clk 0:00:04.9]}
47. Qe8+ {[%clk 0:01:17.7]} 47... Kg7 {[%clk 0:00:04.7]} 48. Qe4 {[%clk
0:01:18.3]} 48... Kg8 {[%clk 0:00:04.4]} 49. g4 {[%clk 0:01:17.3]} 49... hxg4
{[%clk 0:00:04.3]} 50. Qxg4 {[%clk 0:01:18.2]} 50... Qc5 {[%clk 0:00:04.2]} 51.
h5 {[%clk 0:01:18]} 51... Kg7 {[%clk 0:00:04.4]} 52. hxg6 {[%clk 0:01:15.4]}
52... fxg6 {[%clk 0:00:05.3]} 53. Qe4 {[%clk 0:01:15.5]} 53... Kh6 {[%clk
0:00:04.4]} 54. Kg3 {[%clk 0:01:09.6]} 54... Qc7 {[%clk 0:00:04.2]} 55. Qh4+
{[%clk 0:01:08.5]} 55... Kg7 {[%clk 0:00:04]} 56. Qd4+ {[%clk 0:01:08.9]} 56...
Kh6 {[%clk 0:00:03.9]} 57. f3 {[%clk 0:01:04.8]} 57... Kh7 {[%clk 0:00:03.5]}
58. Qf4 {[%clk 0:01:03.2]} 58... Qc5 {[%clk 0:00:03]} 59. Kg2 {[%clk 0:01:00.4]}
59... Qb4 {[%clk 0:00:02.4]} 60. Qh4+ {[%clk 0:00:59.4]} 60... Kg7 {[%clk
0:00:02.3]} 61. Qe7+ {[%clk 0:01:00]} 61... Kh6 {[%clk 0:00:02.6]} 62. Qe3+
{[%clk 0:00:59.2]} 62... Kg7 {[%clk 0:00:02.5]} 63. Qd4+ {[%clk 0:00:59.2]}
63... Kh6 {[%clk 0:00:02.8]} 64. Kh3 {[%clk 0:00:59.5]} 64... Kh7 {[%clk
0:00:02.8]} 65. Kg4 {[%clk 0:00:57.7]} 65... Qa3 {[%clk 0:00:03.1]} 66. Qf4
{[%clk 0:00:55.6]} 66... Qc3 {[%clk 0:00:02.4]} 67. Qf7+ {[%clk 0:00:55.2]}
67... Kh6 {[%clk 0:00:02.2]} 68. Qf8+ {[%clk 0:00:52]} 68... Kh7 {[%clk
0:00:02.4]} 69. Qxd6 {[%clk 0:00:52.1]} 69... Qxc4+ {[%clk 0:00:02.5]} 70. Kg3
{[%clk 0:00:52.5]} 70... Qd4 {[%clk 0:00:02.4]} 71. Qe7+ {[%clk 0:00:52.5]}
71... Kh6 {[%clk 0:00:02.9]} 72. Qh4+ {[%clk 0:00:49.9]} 72... Qxh4+ {[%clk
0:00:02.4]} 73. Kxh4 {[%clk 0:00:50.8]} 73... g5+ {[%clk 0:00:02.4]} 74. Kg4
{[%clk 0:00:51.4]} 74... Kg6 {[%clk 0:00:03.3]} 75. d6 {[%clk 0:00:51.8]} 75...
Kf6 {[%clk 0:00:03.5]} 76. d7 {[%clk 0:00:52.4]} 76... Ke7 {[%clk 0:00:04]} 77.
Kxg5 {[%clk 0:00:52.8]} 77... Kxd7 {[%clk 0:00:04.9]} 78. Kf6 {[%clk 0:00:53.4]}
1-0